bitfinex/quotes_ETHUSD_20240902
["timestamp","ask_amount","ask_price","bid_price","bid_amount"]
[1725288871790,3.9586,2526.2,2525.9,2.3513]
[1725288871992,3.9581,2526.5,2526.0,3.95874]
[1725288872144,3.95773,2526.7,2526.1,3.631004]
[1725288872340,3.95773,2526.7,2526.1,7.589584]
[1725288872544,3.95773,2526.7,2526.2,0.7589584]
[1725288872845,3.95806,2526.5,2526.1,4.589584]
[1725288873043,2.2829,2527.0,2526.0,3.0]
[1725288873243,2.2829,2527.0,2526.0,6.95882]
[1725288873244,3.95811,2526.5,2526.0,6.95882]
[1725288873446,2.2829,2527.0,2526.0,3.0]
[1725288873447,3.9576,2526.8,2526.0,3.0]
[1725288873768,3.95836,2526.3,2526.1,0.049202]
[1725288874095,3.95851,2526.2,2526.1,0.049202]
[1725288874502,3.95851,2526.2,2525.8,3.0]
[1725288874503,3.9587,2526.1,2525.7,3.0]
[1725288874693,7.9168,2526.3,2525.8,5.3489569]
[1725288874892,3.95837,2526.3,2525.9,3.83489569]
[1725288875135,3.95837,2526.3,2526.0,0.04921963]
[1725288875555,7.91681,2526.3,2526.0,0.04921963]
[1725288875724,3.95867,2526.1,2526.0,0.04921963]
[1725288875925,2.3716,2526.6,2525.7,11.26922]
[1725288875926,3.9586,2526.2,2525.7,11.26922]
[1725288876136,7.91692,2526.3,2525.8,4.42444632]
[1725288876452,3.95854,2526.2,2525.8,4.42444632]
[1725288877151,3.95846,2526.3,2525.8,8.38358632]
[1725288877771,3.95822,2526.4,2525.9,6.00335631]
[1725288878064,3.95811,2526.5,2526.0,3.95882]
[1725288878219,7.91624,2526.5,2526.0,4.08676381]
[1725288878414,3.95811,2526.5,2526.0,4.08676381]
[1725288878835,3.95811,2526.5,2526.0,6.47296381]
[1725288879036,3.95796,2526.6,2526.1,3.95865]
[1725288879254,3.95748,2526.9,2526.1,24.13051126]
[1725288879569,7.91504,2526.9,2526.4,3.95818]
[1725288879918,7.915,2526.9,2526.5,0.04859838]
[1725288880576,10.59315797,2527.3,2526.5,0.04859838]
[1725288880577,3.95788,2526.6,2526.5,0.04859838]
[1725288880919,3.95806,2526.5,2526.2,22.8]
[1725288881273,3.9582,2526.4,2526.3,0.04852853]
[1725288881435,7.9164,2526.4,2526.3,0.04852853]
[1725288882155,3.9582,2526.4,2526.3,0.04852853]
[1725288882880,7.9164,2526.4,2526.3,0.04852853]
[1725288883178,3.95844,2526.3,2525.8,9.6485]
[1725288883377,3.95844,2526.3,2525.8,6.35343556]
[1725288883935,3.95856,2526.2,2525.8,6.35343556]
[1725288884752,3.95844,2526.3,2525.8,6.35343556]
[1725288885369,3.95878,2526.1,2525.8,6.35343556]
[1725288885566,7.91756,2526.1,2525.8,2.3385]
[1725288885757,7.91756,2526.1,2525.8,5.3385]
[1725288885963,3.95878,2526.1,2525.8,3.0]
[1725288886294,7.91755,2526.1,2525.8,3.0]
[1725288886784,3.95876,2526.1,2525.8,3.0]
[1725288886986,7.91752,2526.1,2525.8,3.0]
[1725288887392,3.95876,2526.1,2525.8,3.0]
[1725288887686,3.95876,2526.1,2525.8,6.406937]
[1725288887983,3.95876,2526.1,2525.8,3.0]
[1725288888199,7.91755,2526.1,2525.8,3.0]
[1725288888358,3.95883,2526.0,2525.8,3.0]
[1725288888787,3.95853,2526.2,2525.8,3.0]
[1725288888788,3.95867,2526.1,2525.8,3.0]
[1725288889100,3.95882,2526.0,2525.9,0.0487342]
[1725288889666,3.95882,2526.0,2525.7,3.0]
[1725288890006,3.95878,2526.1,2525.8,0.04875183]
[1725288890210,7.91755,2526.1,2525.7,3.0]
[1725288890514,7.91757,2526.1,2525.9,0.0487342]
[1725288890810,7.91757,2526.1,2525.7,3.0]
[1725288890811,7.91756,2526.1,2526.0,0.04871656]
[1725288890962,3.95893,2526.0,2525.7,3.0]
[1725288892014,3.95893,2526.0,2525.6,3.0]
[1725288892166,3.95893,2526.0,2525.6,6.95941]
[1725288892384,3.95893,2526.0,2525.6,7.03858811]
[1725288892568,7.91787,2526.0,2525.6,3.0]
[1725288892784,3.95893,2526.0,2525.6,3.0]
[1725288892993,3.95893,2526.0,2525.7,1.27235998]
[1725288893208,3.95864,2526.2,2525.8,0.07917795]
[1725288893415,3.95824,2526.4,2526.0,2.496]
[1725288893682,3.95806,2526.5,2526.1,3.95865]
[1725288893882,3.95796,2526.6,2526.2,0.07915984]
[1725288894081,3.95796,2526.6,2526.1,3.95859]
[1725288894082,3.95796,2526.6,2526.1,7.91718]
[1725288894355,3.95796,2526.6,2526.2,2.72077067]
[1725288895621,3.95828,2526.4,2526.0,23.24911673]
[1725288895802,3.95828,2526.4,2526.0,22.296]
[1725288895990,3.95858,2526.2,2526.0,19.8]
[1725288896405,3.95837,2526.3,2526.0,19.8]
[1725288897225,7.91667,2526.4,2526.0,19.8]
[1725288897429,3.95833,2526.4,2526.0,26.134713]
[1725288897635,3.95833,2526.4,2526.0,6.334713]
[1725288897929,3.95806,2526.5,2526.1,2.3054]
[1725288898435,2.9270848,2526.9,2526.1,6.264]
[1725288898436,3.95779,2526.7,2526.1,6.264]
[1725288898638,3.95795,2526.6,2526.2,4.03763031]
[1725288899499,3.95795,2526.6,2526.3,0.07915957]
[1725288899715,3.95775,2526.7,2526.3,0.07915957]
[1725288899921,3.95775,2526.7,2526.2,5.22620233]
[1725288900296,3.95775,2526.7,2526.2,5.30536096]
[1725288900703,3.95789,2526.6,2526.1,6.26406]
[1725288900831,3.95789,2526.6,2525.8,19.8]
[1725288900832,3.95894,2526.0,2525.8,2.4365]
[1725288901032,3.95853,2526.2,2525.7,11.2692]
[1725288901268,3.95853,2526.2,2525.7,15.28413556]
[1725288901631,3.95867,2526.1,2525.7,15.28413556]
[1725288901833,3.95853,2526.2,2525.7,19.24334556]
[1725288902134,3.95826,2526.4,2525.9,6.2129]
[1725288902356,7.91655,2526.4,2525.9,6.2129]
[1725288902679,7.91654,2526.4,2526.0,0.07916807]
[1725288902862,7.91654,2526.4,2525.9,6.2129]
[1725288903382,3.95839,2526.3,2525.9,6.2129]
[1725288903737,3.95839,2526.3,2526.0,0.04373628]
[1725288904773,3.95826,2526.4,2526.0,0.04373628]
[1725288904989,3.95751,2526.9,2526.2,3.95843]
[1725288905286,3.95751,2526.9,2526.4,3.95818]
[1725288905634,3.95751,2526.9,2526.5,0.04374564]
[1725288906566,3.95766,2526.8,2526.5,0.04374564]
[1725288906787,3.95766,2526.8,2526.3,9.42004]
[1725288906969,3.95766,2526.8,2526.4,0.04376327]
[1725288908851,3.95785,2526.7,2526.4,0.04376327]
[1725288909053,3.9579,2526.6,2526.4,0.04376327]
[1725288909383,3.95804,2526.5,2526.4,0.04376327]
[1725288909583,3.95886,2526.0,2525.8,7.31]
[1725288909789,3.95908,2525.9,2525.5,32.18]
[1725288910302,3.9593,2525.7,2525.5,32.18]
[1725288910456,7.91872,2525.7,2525.5,32.18]
[1725288910811,3.95963,2525.5,2525.1,9.7221]
[1725288910969,3.95963,2525.5,2525.1,6.42703556]
[1725288911172,7.91939,2525.5,2525.1,2.4121]
[1725288911370,3.95986,2525.4,2525.1,2.4121]
[1725288911682,3.95963,2525.5,2525.1,2.4121]
[1725288912422,3.95963,2525.5,2525.1,5.4121]
[1725288913534,3.95939,2525.7,2525.1,8.329347]
[1725288913697,2.252,2525.9,2525.4,3.95976]
[1725288913698,3.95907,2525.9,2525.4,3.95976]
[1725288913903,3.95907,2525.9,2525.5,0.47515891]
[1725288914128,3.95907,2525.9,2525.5,0.07918291]
[1725288914933,3.95907,2525.9,2525.4,3.95966]
[1725288915103,3.95907,2525.9,2525.2,3.96]
[1725288915104,3.9593,2525.7,2525.2,3.96]
[1725288915430,3.9593,2525.7,2525.2,23.76]
[1725288915587,3.9593,2525.7,2525.2,22.52864951]
[1725288915788,7.91872,2525.7,2525.2,22.52864951]
[1725288915988,3.95946,2525.6,2525.2,19.8]
[1725288916190,3.9593,2525.7,2525.2,19.8]
[1725288916486,3.95946,2525.6,2525.2,19.8]
[1725288916804,3.95966,2525.5,2525.2,19.8]
[1725288916985,3.95978,2525.4,2525.2,19.8]
[1725288917633,3.95978,2525.4,2524.8,13.69919]
[1725288917786,3.95978,2525.4,2524.8,16.7032]
[1725288917991,3.96,2525.3,2524.8,16.7032]
[1725288918386,3.95978,2525.4,2524.9,3.96054]
[1725288918583,7.91964,2525.4,2524.9,3.96054]
[1725288918835,7.91964,2525.4,2525.0,0.03789705]
[1725288919506,3.95955,2525.6,2525.1,3.9602]
[1725288919779,3.95953,2525.6,2525.1,6.2722]
[1725288919973,3.95962,2525.5,2525.2,0.03876213]
[1725288920277,3.95953,2525.6,2525.2,0.03876213]
[1725288920631,7.91854,2525.8,2525.2,3.99882213]
[1725288920838,7.91854,2525.8,2525.2,4.96660393]
[1725288920839,3.9593,2525.7,2525.2,4.96660393]
[1725288921073,3.95925,2525.8,2525.3,3.95981]
[1725288921274,7.91852,2525.8,2525.4,0.89263539]
[1725288921573,7.9185,2525.8,2525.4,0.93224009]
[1725288921728,3.95922,2525.8,2525.4,0.93224009]
[1725288922175,7.91848,2525.8,2525.4,0.93224009]
[1725288922676,3.95933,2525.7,2525.4,0.93224009]
[1725288922850,7.91851,2525.8,2525.4,0.0396047]
[1725288923281,3.95932,2525.7,2525.4,0.0396047]
[1725288923655,7.91851,2525.8,2525.4,0.0396047]
[1725288924363,3.95922,2525.8,2525.4,0.0396047]
[1725288925794,6.39458,2526.2,2525.5,2.3484]
[1725288925795,6.3946,2526.2,2525.5,2.3484]
[1725288925980,3.95885,2526.0,2525.5,6.30787]
[1725288926191,3.95903,2525.9,2525.6,0.03956942]
[1725288927360,3.95878,2526.1,2525.6,0.03956942]
[1725288927865,3.9589,2526.0,2525.6,0.03956942]
[1725288928260,3.95899,2525.9,2525.6,0.03956942]
[1725288928661,3.95883,2526.0,2525.6,3.99899942]
[1725288928959,7.91774,2526.0,2525.6,0.03956942]
[1725288929173,3.959,2525.9,2525.6,0.03956942]
[1725288929391,7.91858,2525.7,2525.6,0.03956942]
[1725288929903,7.91858,2525.7,2525.3,27.11]
[1725288929904,3.95961,2525.5,2525.3,27.11]
[1725288930067,3.95998,2525.3,2525.1,3.0]
[1725288930463,3.96021,2525.2,2524.9,12.31]
[1725288930703,3.95998,2525.3,2524.9,12.31]
[1725288930704,3.96027,2525.1,2524.9,12.31]
[1725288931313,3.96039,2525.0,2524.9,12.31]
[1725288931513,3.96027,2525.1,2524.9,12.31]
[1725288932578,3.96027,2525.1,2524.9,5.0]
[1725288932914,3.96039,2525.0,2524.9,5.0]
[1725288933082,7.92063,2525.1,2524.9,5.0]
[1725288933417,3.96027,2525.1,2524.9,5.0]
[1725288933991,3.96027,2525.1,2525.0,0.03812483]
[1725288935568,7.92065,2525.1,2525.0,0.03812483]
[1725288937217,3.96027,2525.1,2525.0,0.03812483]
[1725288938383,7.92065,2525.1,2525.0,0.03812483]
[1725288938585,8.712686,2525.1,2525.0,0.03812483]
[1725288940635,12.673066,2525.1,2525.0,0.03812483]
[1725288940791,7.92078,2525.0,2524.9,5.0]
[1725288941124,15.5190786,2525.0,2524.9,5.0]
[1725288942901,19.77042657,2525.0,2524.9,5.0]
[1725288944120,15.5190786,2525.0,2524.9,5.0]
[1725288945117,11.5586886,2525.0,2524.9,5.0]
[1725288945475,3.96017,2525.2,2524.9,5.0]
[1725288945476,3.96018,2525.2,2524.9,5.0]
[1725288945917,3.95992,2525.3,2524.9,5.0]
[1725288946206,3.95992,2525.3,2524.9,8.96055]
[1725288947340,7.91994,2525.3,2524.9,5.0]
[1725288947925,3.95992,2525.3,2524.9,5.0]
[1725288948824,3.95992,2525.3,2525.0,0.03930359]
[1725288949736,3.9597,2525.5,2525.0,9.10599395]
[1725288949948,3.95942,2525.7,2525.1,3.96022]
[1725288950155,3.95921,2525.8,2525.2,2.4145]
[1725288950440,3.95906,2525.9,2525.2,2.4145]
[1725288950441,6.44346,2526.1,2525.5,3.95952]
[1725288950737,3.95878,2526.1,2525.6,0.03919773]
[1725288950893,3.95883,2526.0,2525.6,0.03919773]
[1725288952099,3.95899,2525.9,2525.6,0.03919773]
[1725288952299,3.95878,2526.1,2525.6,0.03919773]
[1725288952631,3.95883,2526.0,2525.7,0.03887978]
[1725288952799,3.95883,2526.0,2525.5,3.95956]
[1725288952999,3.95883,2526.0,2525.6,0.03884487]
[1725288956055,3.95901,2525.9,2525.6,0.03884487]
[1725288956395,3.95901,2525.9,2525.4,3.95966]
[1725288956608,3.95901,2525.9,2525.5,0.03815671]
[1725288958738,3.95922,2525.8,2525.5,0.03815671]
[1725288959143,3.95922,2525.8,2525.3,4.35034051]
[1725288959474,3.95962,2525.5,2525.2,2.4145]
[1725288959672,7.91937,2525.5,2525.4,0.03780179]
[1725288959826,7.91952,2525.4,2525.3,0.03782694]
[1725288960028,3.96039,2525.0,2524.9,5.0]
[1725288960355,3.96039,2525.0,2524.9,5.03666295]
[1725288961636,3.96025,2525.1,2524.9,5.03666295]
[1725288963820,3.96039,2525.0,2524.9,5.03666295]
[1725288966016,7.92078,2525.0,2524.9,5.03666295]
[1725288966223,10.21548,2525.0,2524.9,5.03666295]
[1725288968763,3.96039,2525.0,2524.9,5.03666295]
[1725288971334,11.31846997,2525.4,2524.9,5.03666295]
[1725288971335,3.96018,2525.2,2524.9,5.03666295]
[1725288971538,3.96016,2525.2,2524.9,5.03666295]
[1725288971832,3.96039,2525.0,2524.9,5.03666295]
[1725288972071,7.92078,2525.0,2524.9,5.03666295]
[1725288977793,3.96039,2525.0,2524.9,5.03666295]
[1725288978806,8.712844,2525.0,2524.9,5.03666295]
[1725288978984,7.92078,2525.0,2524.9,5.03666295]
[1725288980904,11.88117,2525.0,2524.9,5.03666295]
[1725288981268,18.12516,2525.0,2524.9,5.03666295]
[1725288981462,18.67516,2525.0,2524.9,5.03666295]
[1725288981668,21.3638218,2525.0,2524.9,5.0]
[1725288982105,28.3242118,2525.0,2524.9,1e-05]
[1725288986368,28.81162042,2525.0,2524.9,1e-05]
[1725288988214,28.3242118,2525.0,2524.9,1e-05]
[1725288988398,32.57555977,2525.0,2524.9,1e-05]
[1725288988907,7.92486,2523.7,2523.6,2.473]
[1725288989109,3.96229,2523.8,2523.1,2.3557]
[1725288989319,3.96322,2523.2,2523.1,2.3557]
[1725288989679,3.96317,2523.3,2523.1,2.3557]
[1725288989892,7.92644,2523.2,2523.1,2.3557]
[1725288990183,3.96378,2522.9,2522.5,7.31]
[1725288990414,7.92761,2522.9,2522.6,1.2179788]
[1725288990600,3.96378,2522.9,2522.5,0.07927602]
[1725288990804,3.96349,2523.1,2522.6,3.96414]
[1725288991005,3.96313,2523.3,2522.8,6.31952]
[1725288991321,3.96252,2523.7,2522.8,2.3557]
[1725288991322,3.96297,2523.4,2522.8,2.3557]
[1725288991490,3.96369,2522.9,2522.8,2.3557]
[1725288992312,7.92738,2522.9,2522.8,2.3557]
[1725288993722,7.92738,2522.9,2522.8,2.42090192]
[1725288994076,3.96369,2522.9,2522.8,2.42090192]
[1725288994788,3.96353,2523.1,2522.8,2.42090192]
[1725288994978,3.96348,2523.1,2522.8,2.42090192]
[1725288995179,3.96362,2523.0,2522.8,2.42090192]
[1725288995480,7.92695,2523.1,2522.8,2.42090192]
[1725288995787,3.96353,2523.0,2522.8,2.42090192]
[1725288996212,3.96369,2522.9,2522.8,2.42090192]
[1725288996590,3.96353,2523.0,2522.8,2.42090192]
[1725288996793,3.96369,2522.9,2522.8,2.42090192]
[1725288997222,3.9634,2523.1,2522.8,2.42090192]
[1725288997527,3.96328,2523.2,2522.8,2.42090192]
[1725288999228,3.96338,2523.1,2522.8,2.42090192]
[1725288999605,3.96338,2523.1,2522.8,2.40015956]
[1725288999811,3.96361,2523.0,2522.8,2.40015956]
[1725289000326,3.96299,2523.4,2522.8,2.64017552]
[1725289000531,3.96291,2523.4,2523.0,3.96352]
[1725289000689,3.96291,2523.4,2522.9,6.41368]
[1725289000888,3.96291,2523.4,2523.1,0.04441537]
[1725289001114,7.92591,2523.4,2523.0,0.04443746]
[1725289001327,7.92591,2523.4,2523.2,0.04439328]
[1725289001531,3.96309,2523.3,2523.1,0.04441537]
[1725289001735,3.96322,2523.2,2522.9,3.12776112]
[1725289001895,3.96322,2523.2,2522.9,2.45]
[1725289003535,3.96293,2523.4,2522.9,6.49287503]
[1725289003692,3.96293,2523.4,2523.0,3.3763856]
[1725289003893,7.92596,2523.4,2523.0,3.3763856]
[1725289004320,3.96293,2523.4,2523.0,3.3763856]
[1725289004835,7.92591,2523.4,2523.0,3.3763856]
[1725289004990,7.92591,2523.4,2522.9,2.45]
[1725289004991,3.96317,2523.3,2522.9,2.45]
[1725289006331,3.96293,2523.4,2522.9,2.45]
[1725289006332,3.96323,2523.2,2522.9,2.45]
[1725289008948,7.92653,2523.2,2523.0,0.04443746]
[1725289009767,3.96337,2523.1,2523.0,0.04443746]
[1725289010468,3.96323,2523.2,2523.0,0.04443746]
[1725289011013,7.92674,2523.1,2523.0,0.04443746]
[1725289011243,3.96359,2523.0,2522.8,7.31]
[1725289011511,3.96359,2523.0,2522.9,0.03604819]
[1725289011724,7.92721,2523.0,2522.9,0.03604819]
[1725289012614,8.719931,2523.0,2522.9,0.03604819]
[1725289013445,3.964,2522.7,2522.6,19.8]
[1725289013687,3.96416,2522.6,2522.5,3.0]
[1725289013987,3.96402,2522.7,2522.4,5.4886]
[1725289014643,3.96402,2522.7,2522.4,7.56139]
[1725289015457,3.96402,2522.7,2522.4,5.4886]
[1725289015684,3.96402,2522.7,2522.4,3.0]
[1725289016061,3.96402,2522.7,2522.2,2.4861]
[1725289016062,3.96439,2522.5,2522.2,2.4861]
[1725289016369,3.96448,2522.4,2522.2,2.4861]
[1725289017945,3.96463,2522.3,2522.2,2.4861]
[1725289018386,3.96463,2522.3,2522.1,27.11]
[1725289018797,3.96479,2522.2,2522.1,27.11]
[1725289019458,3.96448,2522.4,2522.1,19.8]
[1725289019660,3.96428,2522.6,2522.2,2.2928]
[1725289020052,7.92852,2522.6,2522.2,2.2928]
[1725289020449,3.96435,2522.5,2522.2,2.2928]
[1725289020902,7.92852,2522.6,2522.2,2.2928]
[1725289021113,3.96439,2522.5,2522.2,2.2928]
[1725289021411,7.92855,2522.6,2522.2,2.2928]
[1725289021571,3.96424,2522.6,2522.2,2.2928]
[1725289021993,7.92853,2522.6,2522.2,2.2928]
[1725289022302,3.96424,2522.6,2522.2,2.2928]
[1725289022465,3.96435,2522.5,2522.2,2.2928]
[1725289022907,3.96463,2522.3,2522.1,19.8]
[1725289023768,3.96463,2522.3,2522.2,0.03709609]
[1725289024071,3.96449,2522.4,2522.2,0.03709609]
[1725289024900,3.96374,2522.9,2522.4,3.96435]
[1725289025126,4.5024893,2523.6,2522.7,3.96386]
[1725289025127,3.96331,2523.2,2522.7,3.96386]
[1725289025288,3.96303,2523.4,2522.8,2.4272]
[1725289025488,3.96303,2523.4,2522.8,2.46411485]
[1725289025683,3.96308,2523.3,2522.8,6.42786485]
[1725289025881,3.96322,2523.2,2522.8,2.46411485]
[1725289026084,3.96369,2522.9,2522.8,0.03691485]
[1725289026317,3.96369,2522.9,2522.5,2.4934]
[1725289026500,3.96369,2522.9,2522.8,0.03691485]
[1725289026689,3.96369,2522.9,2522.5,2.4934]
[1725289026871,3.96369,2522.9,2522.6,0.03695021]
[1725289027373,3.96385,2522.8,2522.6,0.03695021]
[1725289027808,3.96365,2523.0,2522.6,0.03695021]
[1725289028014,3.96334,2523.2,2522.6,0.03695021]
[1725289028305,3.9636,2523.0,2522.6,0.03695021]
[1725289028716,7.92667,2523.2,2522.6,4.00096021]
[1725289028929,3.96314,2523.3,2522.8,3.96374]
[1725289029073,3.96329,2523.2,2522.8,2.294]
[1725289029272,0.396329,2523.1,2522.9,0.03689717]
[1725289029474,4.359719,2523.1,2522.9,0.03689717]
[1725289029778,6.74934797,2523.5,2522.9,4.00057717]
[1725289029779,7.926,2523.4,2522.9,4.00057717]
[1725289030002,3.96299,2523.4,2522.9,4.00057717]
[1725289030683,3.96299,2523.4,2522.9,7.96416717]
[1725289030873,3.96299,2523.4,2522.9,4.00048717]
[1725289031305,8.322349,2523.4,2522.9,4.00048717]
[1725289031514,8.21370797,2523.8,2523.0,3.96344]
[1725289031515,3.96275,2523.5,2523.0,3.96344]
[1725289031879,3.96275,2523.5,2523.1,0.03641102]
[1725289033213,3.96292,2523.4,2523.1,0.03641102]
[1725289033917,7.92591,2523.4,2523.2,0.03639335]
[1725289034108,3.96306,2523.3,2523.2,0.03639335]
[1725289034421,3.96306,2523.3,2522.9,3.96367]
[1725289034637,3.96292,2523.4,2523.2,0.03639335]
[1725289034922,3.96292,2523.4,2522.9,3.96357]
[1725289034923,3.96292,2523.4,2523.3,0.03589486]
[1725289035105,3.96269,2523.6,2523.3,0.03589486]
[1725289035287,3.96269,2523.6,2523.2,6.36267]
[1725289035288,1.2176348,2523.6,2523.2,6.36267]
[1725289035499,5.1802448,2523.6,2523.3,0.03587233]
[1725289035688,3.96275,2523.5,2523.1,3.96334]
[1725289035998,3.96312,2523.3,2523.2,0.03589]
[1725289036510,0.396275,2523.4,2523.0,2.3996]
[1725289036718,4.359185,2523.4,2523.1,0.03590768]
[1725289037591,3.96322,2523.2,2523.1,0.03590768]
[1725289037915,3.96306,2523.3,2522.9,3.96361]
[1725289038135,4.359225,2523.4,2523.1,0.0359227]
[1725289038305,3.96295,2523.4,2523.0,3.99946037]
[1725289038481,3.96283,2523.5,2523.0,3.99946037]
[1725289038677,0.396283,2523.4,2523.0,3.99946037]
[1725289038881,3.96283,2523.5,2523.0,3.99946037]
[1725289039721,3.96291,2523.4,2523.0,0.03594037]
[1725289040235,3.96291,2523.4,2523.0,3.99943037]
[1725289040611,3.96291,2523.4,2523.0,0.03594037]
[1725289040798,4.755471,2523.4,2523.0,0.03594037]
[1725289041135,4.755471,2523.4,2523.0,3.99944037]
[1725289041547,4.755471,2523.4,2523.0,0.03594037]
[1725289041548,8.718481,2523.4,2523.0,0.03594037]
[1725289041695,4.755471,2523.4,2523.0,0.03594037]
[1725289042950,3.96308,2523.3,2523.0,0.03594037]
[1725289043828,3.96333,2523.2,2523.0,0.03594037]
[1725289044199,3.96333,2523.2,2522.8,2.3996]
[1725289044553,3.96333,2523.2,2522.8,6.36336]
[1725289044761,3.96333,2523.2,2522.9,0.03839772]
[1725289045355,3.96325,2523.2,2522.9,0.03839772]
[1725289045560,4.40736141,2523.1,2522.9,0.03839772]
[1725289046142,7.92706,2523.0,2522.9,0.03839772]
[1725289046747,3.96389,2522.8,2522.3,11.27461]
[1725289046961,0.396389,2522.7,2522.3,3.96461]
[1725289047369,0.44388141,2523.1,2522.3,3.96461]
[1725289047370,3.96374,2522.9,2522.3,3.96456]
[1725289047671,0.44388141,2523.1,2522.6,3.96408]
[1725289047870,3.96339,2523.1,2522.6,6.31978]
[1725289048367,3.9633,2523.2,2522.7,3.96399]
[1725289048520,4.40718641,2523.2,2522.7,3.96399]
[1725289049140,0.44388641,2523.2,2522.8,3.96377]
[1725289050627,4.40710641,2523.2,2522.7,3.964]
[1725289051025,0.88457405,2523.1,2522.6,2.3557]
[1725289051342,4.84799405,2523.1,2522.6,6.31982]
[1725289051536,3.96369,2522.9,2522.3,2.2834]
[1725289051778,3.964,2522.7,2522.3,2.2834]
[1725289052776,3.96386,2522.8,2522.3,6.24792]
[1725289052924,3.96348,2523.1,2522.4,3.96447]
[1725289053126,3.96348,2523.1,2522.5,3.96424]
[1725289053761,3.96364,2523.0,2522.6,0.03623643]
[1725289053941,4.593818,2523.0,2522.6,0.03623643]
[1725289056274,4.593818,2523.0,2522.6,4.00039643]
[1725289056570,0.630178,2523.0,2522.6,4.00031643]
[1725289056771,7.92653,2523.2,2522.7,6.44259]
[1725289056972,3.96317,2523.3,2522.8,3.96373]
[1725289057173,3.96317,2523.3,2522.8,3.99993107]
[1725289057367,3.96322,2523.2,2522.8,0.03620107]
[1725289057800,4.6298748,2523.4,2522.8,0.03620107]
[1725289058112,3.96299,2523.4,2522.9,3.96368]
[1725289058312,7.92598,2523.4,2522.9,3.96368]
[1725289058514,7.92598,2523.4,2523.0,0.03616572]
[1725289058705,3.96309,2523.3,2523.0,0.03616572]
[1725289058872,3.96322,2523.2,2523.0,0.03616572]
[1725289059071,7.92657,2523.2,2523.0,0.03616572]
[1725289059271,7.92657,2523.2,2522.7,6.44258]
[1725289059272,3.96337,2523.1,2522.7,6.44258]
[1725289060072,3.96324,2523.2,2522.7,6.44258]
[1725289060677,7.92654,2523.2,2522.7,6.44258]
[1725289061081,3.96343,2523.1,2522.7,6.44258]
[1725289061280,3.96355,2523.0,2522.6,7.31]
[1725289061511,7.92718,2523.0,2522.6,7.31]
[1725289061672,3.96355,2523.0,2522.6,7.31]
[1725289061876,7.92722,2523.0,2522.6,7.31]
[1725289062086,3.96355,2523.0,2522.6,7.31]
[1725289063632,3.96377,2522.9,2522.6,7.31]
[1725289063986,3.96355,2523.0,2522.6,7.31]
[1725289064513,7.92722,2523.0,2522.6,7.31]
[1725289065593,3.96355,2523.0,2522.6,7.31]
[1725289066124,7.92722,2523.0,2522.6,7.31]
[1725289066443,2.4797,2523.7,2522.7,2.3753]
[1725289066589,2.4797,2523.7,2523.2,3.96321]
[1725289066590,3.96254,2523.7,2523.2,3.96321]
[1725289067098,3.96252,2523.7,2523.2,3.96321]
[1725289067305,3.9626,2523.6,2523.1,2.3753]
[1725289067540,3.9626,2523.6,2523.1,6.33866]
[1725289067689,3.96234,2523.8,2523.2,3.96319]
[1725289068707,3.96234,2523.8,2523.3,0.05817212]
[1725289069029,3.96154,2524.3,2523.4,2.3013]
[1725289069030,3.96159,2524.3,2523.4,2.3013]
[1725289069233,7.92319,2524.3,2523.7,6.26361]
[1725289069404,3.96129,2524.5,2523.9,3.96206]
[1725289069584,4.357419,2524.5,2523.9,3.96206]
[1725289069783,0.396129,2524.5,2524.1,6.2581]
[1725289070034,3.96095,2524.7,2524.1,6.2581]
[1725289070241,3.96095,2524.7,2524.2,3.96164]
[1725289070825,3.9606,2524.9,2524.3,0.07922393]
[1725289071039,7.92126,2524.9,2524.2,3.96164]
[1725289071222,3.96071,2524.8,2524.3,0.07922125]
[1725289071590,2.4388,2524.8,2524.1,2.2964]
[1725289071792,7.92224,2524.6,2524.1,2.2964]
[1725289072090,3.96111,2524.6,2524.1,2.2964]
[1725289072601,7.92223,2524.6,2524.1,2.2964]
[1725289073131,3.96148,2524.4,2524.1,2.2964]
[1725289073335,4.357728,2524.3,2523.8,9.39204]
[1725289073501,3.96158,2524.3,2523.8,9.39204]
[1725289074121,3.96158,2524.3,2523.8,5.4299]
[1725289075521,3.96158,2524.3,2523.8,9.39217]
[1725289075832,3.96148,2524.4,2523.9,1.37174537]
[1725289076037,3.96148,2524.4,2523.9,5.33384537]
[1725289076232,3.96145,2524.4,2523.8,9.39203]
[1725289076531,3.96152,2524.3,2523.8,9.39203]
[1725289076743,0.283486,2524.7,2523.8,5.4299]
[1725289076935,3.96103,2524.6,2524.1,3.96178]
[1725289077823,7.92214,2524.6,2524.1,3.96178]
[1725289079090,3.96103,2524.6,2524.1,3.96178]
[1725289079528,3.96103,2524.6,2524.2,2.2997]
[1725289081713,0.39606,2524.9,2524.2,2.2997]
[1725289081714,3.96055,2524.9,2524.5,2.3762]
[1725289081918,3.96049,2525.0,2524.5,6.33734]
[1725289082132,3.96019,2525.2,2524.5,6.33734]
[1725289082133,3.96019,2525.2,2524.6,3.96098]
[1725289082439,3.96019,2525.2,2524.8,3.96069]
[1725289082740,3.95985,2525.4,2524.8,3.96069]
[1725289082982,3.95985,2525.4,2524.9,2.4311]
[1725289083099,8.550175,2525.4,2524.9,2.4311]
[1725289083300,4.590305,2525.4,2524.9,2.4311]
[1725289083756,3.95993,2525.3,2524.9,2.4311]
[1725289084198,6.22336,2525.8,2524.9,2.4311]
[1725289084199,3.95973,2525.5,2525.0,3.96036]
[1725289084404,3.95956,2525.6,2525.0,3.96029]
[1725289084643,3.95956,2525.6,2525.1,3.96023]
[1725289085035,3.95956,2525.6,2525.2,2.4022]